bitfinex/quotes_BTCUSD_20241211
["timestamp","ask_amount","ask_price","bid_price","bid_amount"]
[1733875200299,0.0011714,96660.0,96659.0,0.25532524]
[1733875200676,0.0021714,96660.0,96659.0,0.25532524]
[1733875201042,0.0001714,96660.0,96659.0,0.25532524]
[1733875201406,0.0011714,96660.0,96659.0,0.25532524]
[1733875201603,0.0001714,96660.0,96659.0,0.25532524]
[1733875202446,0.0001714,96680.0,96659.0,0.25532524]
[1733875202644,0.0001714,96680.0,96661.0,0.15]
[1733875202939,0.0001714,96680.0,96663.0,0.15]
[1733875202940,0.19190832,96664.0,96663.0,0.15]
[1733875203308,0.19190832,96664.0,96663.0,0.25532524]
[1733875204883,0.19490832,96664.0,96663.0,0.25532524]
[1733875205406,0.19390832,96664.0,96663.0,0.25532524]
[1733875205615,0.19490832,96664.0,96663.0,0.25532524]
[1733875206231,0.19490832,96664.0,96650.0,0.09303364]
[1733875206232,0.19190832,96652.0,96650.0,0.09303364]
[1733875206440,0.19190832,96651.0,96650.0,8.57e-05]
[1733875207584,0.19190832,96651.0,96650.0,0.10741094]
[1733875208106,0.14988242,96651.0,96650.0,0.10741094]
[1733875208300,0.0420259,96651.0,96650.0,0.25541094]
[1733875208506,0.19190832,96651.0,96650.0,0.25541094]
[1733875209643,0.19190832,96651.0,96650.0,0.25741094]
[1733875210051,0.19190832,96651.0,96650.0,0.10641094]
[1733875210272,0.19190832,96651.0,96650.0,0.0030857]
[1733875210659,0.19960805,96651.0,96650.0,8.57e-05]
[1733875210816,0.04972563,96651.0,96650.0,0.0010857]
[1733875211016,0.04972563,96651.0,96650.0,0.0020857]
[1733875211216,0.04972563,96651.0,96650.0,0.0010857]
[1733875211482,0.20260805,96651.0,96650.0,8.57e-05]
[1733875211693,0.20460805,96651.0,96650.0,8.57e-05]
[1733875212271,0.35460805,96651.0,96650.0,8.57e-05]
[1733875212470,0.19690832,96651.0,96650.0,8.57e-05]
[1733875212674,0.19390832,96651.0,96650.0,8.57e-05]
[1733875213103,0.19390832,96651.0,96650.0,0.0010857]
[1733875213104,0.19690832,96651.0,96650.0,0.0010857]
[1733875213469,0.19890832,96651.0,96650.0,0.0010857]
[1733875213664,0.19890832,96651.0,96650.0,0.10641094]
[1733875214435,0.09227054,96685.0,96679.0,0.02785157]
[1733875214585,0.09227054,96685.0,96679.0,0.28317681]
[1733875214761,0.0001714,96690.0,96679.0,0.28317681]
[1733875214947,0.0001714,96690.0,96679.0,0.61017335]
[1733875215147,0.0001714,96690.0,96679.0,0.28317681]
[1733875215815,0.0001714,96690.0,96679.0,0.29373299]
[1733875216023,0.0001714,96690.0,96679.0,0.38653468]
[1733875216422,0.0061714,96680.0,96679.0,0.29373299]
[1733875216788,0.0091714,96680.0,96679.0,0.29473299]
[1733875216991,0.0001714,96680.0,96679.0,0.38649918]
[1733875217224,0.0001714,96680.0,96679.0,0.38949918]
[1733875217431,0.0001714,96680.0,96679.0,0.30173299]
[1733875217595,0.0001714,96680.0,96679.0,0.38649918]
[1733875217796,0.0001714,96680.0,96679.0,0.64357341]
[1733875218128,0.0001714,96680.0,96679.0,0.8096796]
[1733875218334,0.0001714,96680.0,96679.0,0.62422988]
[1733875218972,0.0001714,96680.0,96679.0,0.62922988]
[1733875219211,0.0001714,96680.0,96679.0,0.29117681]
[1733875219408,0.0001714,96680.0,96679.0,0.28317681]
[1733875219613,0.0021714,96680.0,96679.0,0.29617681]
[1733875219962,0.0011714,96680.0,96679.0,0.11032524]
[1733875220169,0.0001714,96680.0,96679.0,0.11032524]
[1733875220382,0.0001714,96680.0,96679.0,0.11332524]
[1733875220583,0.0001714,96680.0,96679.0,0.10832524]
[1733875220732,0.0011714,96680.0,96679.0,0.011]
[1733875221296,0.0011714,96680.0,96679.0,0.008]
[1733875221502,0.00623223,96680.0,96679.0,0.008]
[1733875221725,0.0011714,96680.0,96679.0,0.008]
[1733875222111,0.15,96678.0,96654.0,0.02785157]
[1733875222329,0.15,96678.0,96655.0,0.10532524]
[1733875222525,0.0050582,96677.0,96660.0,0.12330857]
[1733875222727,0.0050582,96677.0,96661.0,0.10532524]
[1733875222949,0.1550582,96677.0,96661.0,0.10532524]
[1733875224689,0.1580582,96677.0,96661.0,0.10532524]
[1733875225553,0.1640582,96677.0,96661.0,0.10632524]
[1733875225760,0.1580582,96677.0,96661.0,0.10532524]
[1733875225962,0.1550582,96677.0,96661.0,0.10532524]
[1733875226169,0.1590582,96677.0,96661.0,0.10532524]
[1733875226368,0.1560582,96677.0,96661.0,0.10532524]
[1733875226782,0.1560582,96677.0,96661.0,0.10632524]
[1733875226783,0.1610582,96677.0,96661.0,0.10632524]
[1733875226989,0.1610582,96677.0,96661.0,0.10532524]
[1733875227162,0.1640582,96677.0,96661.0,0.10532524]
[1733875227602,0.1610582,96677.0,96661.0,0.10532524]
[1733875228248,0.15,96665.0,96660.0,8.57e-05]
[1733875228596,0.00501573,96664.0,96660.0,8.57e-05]
[1733875228962,0.00501573,96664.0,96661.0,0.001]
[1733875229403,0.00501573,96664.0,96660.0,8.57e-05]
[1733875229744,0.01401573,96664.0,96660.0,0.0010857]
[1733875230079,0.00501573,96664.0,96660.0,8.57e-05]
[1733875230487,0.00901573,96664.0,96660.0,8.57e-05]
[1733875230913,0.00501573,96664.0,96660.0,8.57e-05]
[1733875231318,0.41381,96663.0,96661.0,0.001]
[1733875231521,0.16033816,96679.0,96660.0,8.57e-05]
[1733875231736,0.00767058,96681.0,96661.0,0.10532524]
[1733875231958,0.009,96664.0,96661.0,0.10532524]
[1733875232165,0.206885,96672.0,96661.0,0.10532524]
[1733875232418,0.004,96664.0,96661.0,0.10532524]
[1733875232621,0.005,96663.0,96661.0,0.10532524]
[1733875233197,0.005,96663.0,96662.0,0.3]
[1733875233377,0.005,96663.0,96662.0,0.76223124]
[1733875234589,0.206851,96688.0,96668.0,0.206891]
[1733875234795,0.206851,96688.0,96669.0,0.10532524]
[1733875235218,0.206843,96692.0,96670.0,0.206889]
[1733875235419,0.206843,96692.0,96672.0,0.206885]
[1733875235617,0.206852,96688.0,96673.0,0.10532524]
[1733875236578,0.0011714,96680.0,96673.0,0.10532524]
[1733875237586,0.0001714,96680.0,96676.0,0.15]
[1733875237835,0.0031714,96680.0,96679.0,0.58967]
[1733875238122,0.0031714,96680.0,96679.0,0.48812524]
[1733875238585,0.0001714,96680.0,96679.0,0.48812524]
[1733875238818,0.0031714,96680.0,96679.0,0.48812524]
[1733875239047,0.0041714,96680.0,96679.0,0.48812524]
[1733875239269,0.0011714,96680.0,96679.0,0.48812524]
[1733875239498,0.0001714,96680.0,96679.0,0.48812524]
[1733875239734,0.0031714,96680.0,96679.0,0.48812524]
[1733875240012,0.0041714,96680.0,96679.0,0.63812524]
[1733875241822,0.0041714,96680.0,96679.0,0.48812524]
[1733875242028,0.0041714,96680.0,96679.0,0.40532524]
[1733875242442,0.0041714,96680.0,96679.0,0.55532524]
[1733875244496,0.0041714,96680.0,96679.0,0.60122524]
[1733875245098,0.0031714,96680.0,96679.0,0.60122524]
[1733875245296,0.0001714,96680.0,96679.0,0.60122524]
[1733875245498,0.0011714,96680.0,96679.0,0.25532524]
[1733875245748,0.0021714,96680.0,96679.0,0.26432524]
[1733875245890,0.0021714,96680.0,96679.0,0.41432524]
[1733875246093,0.0021714,96680.0,96679.0,0.25532524]
[1733875246094,0.0001714,96680.0,96679.0,0.25532524]
[1733875246293,0.0021714,96680.0,96679.0,0.26832524]
[1733875246772,0.0021714,96680.0,96679.0,0.41832524]
[1733875246981,0.0011714,96680.0,96679.0,0.41432524]
[1733875247124,0.0011714,96680.0,96679.0,0.26432524]
[1733875247506,0.00091277,96680.0,96679.0,0.41432524]
[1733875247709,0.00091277,96680.0,96679.0,0.26432524]
[1733875247931,0.00091277,96680.0,96679.0,0.41432524]
[1733875248106,0.20684,96693.0,96681.0,0.15]
[1733875248465,0.20684,96693.0,96682.0,0.10532524]
[1733875249003,0.206833,96697.0,96682.0,0.10532524]
[1733875249207,0.0011714,96690.0,96682.0,0.31218724]
[1733875249551,0.0011714,96690.0,96682.0,0.10532524]
[1733875250127,0.0021714,96690.0,96682.0,0.10532524]
[1733875250307,0.0021714,96690.0,96675.0,0.15]
[1733875250308,0.0021714,96690.0,96660.0,0.1500857]
[1733875250515,0.206872,96678.0,96662.0,0.15]
[1733875250737,0.206882,96674.0,96663.0,0.10532524]
[1733875251526,0.0011714,96690.0,96660.0,8.57e-05]
[1733875251527,0.12647997,96690.0,96660.0,8.57e-05]
[1733875251773,0.206907,96662.0,96660.0,8.57e-05]
[1733875252932,0.213907,96662.0,96660.0,0.0010857]
[1733875253185,0.216907,96662.0,96660.0,0.0010857]
[1733875253380,0.209907,96662.0,96660.0,8.57e-05]
[1733875254360,0.206907,96662.0,96660.0,8.57e-05]
[1733875254537,0.208907,96662.0,96660.0,8.57e-05]
[1733875254745,0.214907,96662.0,96660.0,0.0010857]
[1733875254943,0.208907,96662.0,96660.0,8.57e-05]
[1733875255172,0.2672291,96662.0,96660.0,8.57e-05]
[1733875255369,0.211907,96662.0,96660.0,8.57e-05]
[1733875256018,0.208907,96662.0,96660.0,8.57e-05]
[1733875256171,0.206907,96662.0,96660.0,8.57e-05]
[1733875256373,0.214907,96662.0,96660.0,0.0010857]
[1733875256724,0.32023224,96662.0,96660.0,0.0010857]
[1733875278335,0.206908,96661.0,96660.0,0.0010857]
[1733875278919,0.11332524,96662.0,96660.0,0.0010857]
[1733875279341,0.206908,96661.0,96660.0,0.0010857]
[1733875279848,0.356908,96661.0,96660.0,0.0010857]
[1733875281337,0.36658293,96661.0,96660.0,0.0010857]
[1733875281721,0.21658293,96661.0,96660.0,0.0010857]
[1733875282173,0.00967493,96661.0,96660.0,0.0010857]
[1733875282380,0.00967493,96661.0,96660.0,0.0822857]
[1733875282761,0.00967493,96661.0,96660.0,0.1289857]
[1733875283854,0.00967493,96661.0,96660.0,0.1299857]
[1733875284273,0.01567493,96661.0,96660.0,0.1299857]
[1733875284821,0.01567493,96661.0,96660.0,0.1289857]
[1733875284951,0.00967493,96661.0,96660.0,0.1289857]
[1733875285140,0.00967493,96661.0,96660.0,0.23431094]
[1733875285341,0.00967493,96661.0,96660.0,8.57e-05]
[1733875285547,0.01267493,96661.0,96660.0,8.57e-05]
[1733875285989,0.01967493,96661.0,96660.0,0.0010857]
[1733875287742,0.01967472,96661.0,96660.0,0.0010857]
[1733875291396,0.01,96661.0,96660.0,0.0010857]
[1733875294295,0.007,96661.0,96660.0,0.0010857]
[1733875294677,0.012,96661.0,96660.0,0.0010857]
[1733875295099,0.007,96661.0,96660.0,0.0010857]
[1733875295501,0.005,96661.0,96660.0,8.57e-05]
[1733875295705,0.164,96661.0,96660.0,8.57e-05]
[1733875296108,0.155,96661.0,96660.0,8.57e-05]
[1733875296344,0.164,96661.0,96660.0,8.57e-05]
[1733875296548,0.25605956,96661.0,96660.0,8.57e-05]
[1733875296906,0.27905956,96661.0,96660.0,8.57e-05]
[1733875297105,0.99562492,96661.0,96660.0,8.57e-05]
[1733875297309,0.84353692,96661.0,96660.0,8.57e-05]
[1733875298126,0.83853692,96661.0,96660.0,8.57e-05]
[1733875298333,0.84453692,96661.0,96660.0,8.57e-05]
[1733875298678,0.83553692,96661.0,96660.0,8.57e-05]
[1733875298834,0.83853692,96661.0,96660.0,8.57e-05]
[1733875299031,0.82953692,96661.0,96660.0,8.57e-05]
[1733875299439,0.95533692,96661.0,96660.0,8.57e-05]
[1733875299638,0.84653692,96661.0,96660.0,8.57e-05]
[1733875300678,0.84653692,96661.0,96660.0,7e-07]
[1733875301314,0.83853692,96661.0,96660.0,7e-07]
[1733875302232,0.54040448,96661.0,96660.0,7e-07]
[1733875302405,0.34037336,96661.0,96660.0,7e-07]
[1733875302607,0.008,96661.0,96660.0,7e-07]
[1733875302817,0.10915693,96661.0,96660.0,7e-07]
[1733875302953,0.10015693,96661.0,96660.0,7e-07]
[1733875303404,0.10915693,96661.0,96660.0,7e-07]
[1733875303553,0.25015693,96661.0,96660.0,7e-07]
[1733875303751,0.27315693,96661.0,96660.0,7e-07]
[1733875304158,0.26515693,96661.0,96660.0,7e-07]
[1733875304405,0.27315693,96661.0,96660.0,7e-07]
[1733875304837,0.26515693,96661.0,96660.0,7e-07]
[1733875305209,0.27115693,96661.0,96660.0,7e-07]
[1733875305677,0.28015693,96661.0,96660.0,7e-07]
[1733875305914,0.27115693,96661.0,96660.0,7e-07]
[1733875306086,0.28015693,96661.0,96660.0,7e-07]
[1733875307744,0.188,96661.0,96660.0,7e-07]
[1733875308622,0.182,96661.0,96660.0,7e-07]
[1733875308823,0.173,96661.0,96660.0,7e-07]
[1733875309121,0.188,96661.0,96660.0,7e-07]
[1733875309722,0.165,96661.0,96660.0,7e-07]
[1733875312225,0.188,96661.0,96660.0,7e-07]
[1733875313021,0.179,96661.0,96660.0,7e-07]
[1733875313220,0.188,96661.0,96660.0,7e-07]
[1733875313477,0.182,96661.0,96660.0,7e-07]
[1733875313847,0.188,96661.0,96660.0,7e-07]
[1733875315082,0.29332524,96661.0,96660.0,7e-07]
[1733875315310,0.53668935,96661.0,96660.0,7e-07]
[1733875315522,1.00263975,96661.0,96660.0,7e-07]
[1733875315726,1.04872669,96661.0,96660.0,7e-07]
[1733875315935,0.81829199,96661.0,96660.0,7e-07]
[1733875316141,0.81696628,96661.0,96660.0,7e-07]
[1733875316360,0.82596628,96661.0,96660.0,7e-07]
[1733875316559,0.81696628,96661.0,96660.0,7e-07]
[1733875316770,0.81096628,96661.0,96660.0,7e-07]
[1733875316977,0.71486299,96661.0,96660.0,7e-07]
[1733875317191,0.71186299,96661.0,96660.0,7e-07]
[1733875317417,0.72086299,96661.0,96660.0,7e-07]
[1733875317605,0.74684849,96661.0,96660.0,7e-07]
[1733875317998,0.75584849,96661.0,96660.0,7e-07]
[1733875318281,0.86095178,96661.0,96660.0,7e-07]
[1733875318460,0.51168832,96661.0,96660.0,7e-07]
[1733875318796,0.51168832,96661.0,96650.0,4e-07]
[1733875318797,0.20693,96651.0,96650.0,4e-07]
[1733875319002,0.48525524,96651.0,96650.0,4e-07]
[1733875319344,0.206951,96641.0,96640.0,8.57e-05]
[1733875319507,0.49495016,96641.0,96640.0,8.57e-05]
[1733875319708,1.0684304,96641.0,96640.0,8.57e-05]
[1733875320168,0.88415117,96641.0,96640.0,8.57e-05]
[1733875320752,0.89115117,96641.0,96640.0,8.57e-05]
[1733875321711,1.12150021,96641.0,96640.0,8.57e-05]
[1733875321910,0.92312191,96641.0,96640.0,8.57e-05]
[1733875322223,0.92312191,96641.0,96640.0,7e-07]
[1733875322224,1.17275349,96641.0,96640.0,7e-07]
[1733875322442,0.94256,96641.0,96640.0,7e-07]
[1733875323182,0.93488571,96641.0,96640.0,7e-07]
[1733875324782,1.12334333,96641.0,96640.0,7e-07]
[1733875324987,0.52138827,96641.0,96640.0,7e-07]
[1733875325191,0.65930071,96641.0,96640.0,7e-07]
[1733875325411,0.52905389,96641.0,96640.0,7e-07]
[1733875325832,0.62097713,96641.0,96640.0,7e-07]
[1733875326250,0.58242965,96641.0,96640.0,7e-07]
[1733875326455,0.68133911,96641.0,96640.0,7e-07]
[1733875326672,0.69033911,96641.0,96640.0,7e-07]
[1733875326841,0.58242965,96641.0,96640.0,7e-07]
[1733875327406,0.59842965,96641.0,96640.0,7e-07]
[1733875327817,0.59142965,96641.0,96640.0,7e-07]
[1733875328023,0.96242952,96641.0,96640.0,7e-07]
[1733875328253,1.15330947,96641.0,96640.0,7e-07]
[1733875328398,0.96942952,96641.0,96640.0,7e-07]
[1733875328615,0.94308998,96641.0,96640.0,7e-07]
[1733875328805,0.9597486,96641.0,96640.0,7e-07]
[1733875329010,0.206972,96631.0,96630.0,4e-07]
[1733875329209,0.53434986,96631.0,96630.0,4e-07]
[1733875329373,0.54401219,96631.0,96630.0,4e-07]
[1733875330532,0.54901219,96631.0,96630.0,4e-07]
[1733875331898,0.54900552,96631.0,96630.0,4e-07]
[1733875332103,0.54900552,96631.0,96610.0,0.0457857]
[1733875332104,0.82743352,96631.0,96620.0,1e-07]
[1733875332301,0.82743352,96631.0,96600.0,7e-07]
[1733875332302,0.380037,96601.0,96600.0,7e-07]
[1733875332522,0.4950179,96601.0,96600.0,7e-07]
[1733875332722,0.50267102,96601.0,96600.0,7e-07]
[1733875332926,0.50611984,96601.0,96600.0,7e-07]
[1733875333131,0.50267102,96601.0,96600.0,7e-07]
[1733875333332,0.57364142,96601.0,96600.0,7e-07]
[1733875333807,0.37434578,96601.0,96600.0,7e-07]
[1733875334006,0.38334578,96601.0,96600.0,7e-07]
[1733875334259,0.23334578,96601.0,96600.0,0.1299007]
[1733875334452,0.22569266,96601.0,96600.0,0.1299007]
[1733875334802,0.23069266,96601.0,96600.0,0.1299007]
[1733875335384,0.02365566,96601.0,96600.0,0.1299007]
[1733875335596,0.09177078,96644.0,96617.0,0.15]
[1733875335801,0.30431953,96659.0,96617.0,0.15]
[1733875335802,0.206978,96629.0,96621.0,0.15]
[1733875335946,0.12330857,96650.0,96622.0,0.10532524]
[1733875335947,0.206987,96625.0,96622.0,0.10532524]
[1733875336183,0.413974,96625.0,96622.0,0.10532524]
[1733875336383,0.206987,96625.0,96622.0,0.10532524]
[1733875336973,0.413973,96625.0,96622.0,0.10532524]
[1733875338492,0.413973,96625.0,96622.0,0.10732524]
[1733875338909,0.413973,96625.0,96622.0,0.002]
[1733875339890,0.206998,96619.0,96618.0,0.0807]
[1733875340394,0.207015,96611.0,96610.0,0.0492]
[1733875341669,0.20701,96614.0,96610.0,0.0492]
[1733875341926,0.009,96625.0,96613.0,0.15]
[1733875342146,0.009,96625.0,96616.0,0.15]
[1733875342147,0.207002,96618.0,96616.0,0.15]
[1733875342350,0.206993,96622.0,96616.0,0.15]
[1733875342500,0.206955,96640.0,96616.0,0.15]
[1733875342716,0.206993,96622.0,96616.0,0.15]
[1733875343035,0.207002,96618.0,96616.0,0.15]
[1733875343214,0.207002,96618.0,96614.0,0.10532524]
[1733875343419,0.34054856,96640.0,96616.0,0.001]
[1733875343420,0.207003,96617.0,96616.0,0.001]
[1733875343825,0.207013,96612.0,96610.0,0.0492]
[1733875344082,0.207013,96612.0,96610.0,0.15452524]
[1733875344651,0.206985,96626.0,96616.0,0.15]
[1733875344861,0.206985,96625.0,96616.0,0.15]
[1733875345060,0.206985,96625.0,96617.0,0.15]
[1733875345264,0.206996,96621.0,96617.0,0.15]
[1733875345437,0.09183464,96661.0,96626.0,0.15]
[1733875345663,0.20696,96637.0,96627.0,0.10532524]
[1733875346009,0.09183464,96669.0,96638.0,0.15]
[1733875346135,0.18366928,96674.0,96638.0,0.15]
[1733875346136,0.206941,96646.0,96638.0,0.15]
[1733875346336,0.413882,96646.0,96638.0,0.15]
[1733875346963,0.20695,96642.0,96638.0,0.15]
[1733875347325,0.4139,96642.0,96638.0,0.15]
[1733875347531,0.206953,96640.0,96638.0,0.15]
[1733875347737,0.00965735,96639.0,96638.0,0.15]
[1733875349202,0.206953,96640.0,96638.0,0.002]
[1733875349463,0.206953,96640.0,96638.0,0.15]
[1733875349855,0.206943,96645.0,96638.0,0.152]
[1733875350084,0.00965347,96644.0,96640.0,0.15]
[1733875350283,0.206913,96659.0,96645.0,0.15]
[1733875350518,0.00965074,96658.0,96649.0,0.15]
[1733875350720,0.00965074,96658.0,96649.0,0.25532524]
[1733875351584,0.206913,96659.0,96649.0,0.25532524]
[1733875351789,0.0001714,96670.0,96649.0,0.48192524]
[1733875352199,0.206895,96667.0,96649.0,0.48492524]
[1733875352327,0.0001714,96670.0,96649.0,0.48492524]
[1733875352960,0.0001714,96670.0,96649.0,0.48192524]
[1733875353173,0.41379,96668.0,96649.0,0.48592524]
[1733875353522,0.206895,96668.0,96649.0,0.48192524]
[1733875353995,0.206895,96668.0,96649.0,0.48492524]
[1733875354540,0.206903,96664.0,96649.0,0.48492524]
[1733875354942,0.0011714,96650.0,96649.0,0.49192524]
[1733875355153,0.0001714,96650.0,96649.0,0.48492524]
[1733875355355,0.0001714,96650.0,96649.0,0.48192524]
[1733875355356,0.00475488,96650.0,96649.0,0.48192524]
[1733875355580,0.00575488,96650.0,96649.0,0.34192524]
[1733875355797,0.21268688,96650.0,96649.0,0.19192524]
[1733875355983,0.00575488,96650.0,96649.0,0.34192524]
[1733875357275,0.0011714,96650.0,96649.0,0.34192524]
[1733875357678,0.0011714,96650.0,96649.0,0.49192524]
[1733875360579,0.0011714,96650.0,96649.0,0.53962524]
[1733875361177,0.0011714,96650.0,96649.0,0.38962524]
[1733875361317,0.0011714,96650.0,96649.0,0.53962524]
[1733875364762,0.0001714,96650.0,96649.0,0.54292246]
[1733875365018,0.0001714,96650.0,96649.0,0.53992246]
[1733875365215,0.0011714,96650.0,96649.0,0.54692246]
[1733875365396,0.0011714,96650.0,96649.0,0.54992246]
[1733875365595,0.0001714,96650.0,96649.0,0.54292246]
[1733875366162,0.0011714,96650.0,96649.0,0.55192246]
[1733875366273,0.0011714,96650.0,96649.0,0.53862524]
[1733875366682,0.0021714,96650.0,96649.0,0.54462524]
[1733875366881,0.00685406,96650.0,96649.0,0.54462524]
[1733875367085,0.00685406,96650.0,96649.0,0.12032524]
[1733875367329,0.00685406,96650.0,96649.0,0.015]
[1733875368045,0.00685406,96650.0,96649.0,0.27032524]
[1733875368246,0.00485406,96650.0,96649.0,0.25532524]
[1733875368450,0.00685406,96650.0,96649.0,0.25532524]
[1733875368664,0.01085406,96650.0,96649.0,0.25532524]
[1733875369071,0.00885406,96650.0,96649.0,0.25532524]
[1733875369273,0.00885406,96650.0,96649.0,0.25632524]
[1733875369274,0.01285406,96650.0,96649.0,0.25632524]
[1733875369487,0.00485406,96650.0,96649.0,0.25632524]
[1733875369864,0.00485406,96650.0,96649.0,0.25732524]
[1733875370287,0.0144978,96650.0,96649.0,0.10732524]
[1733875370491,0.0144978,96650.0,96649.0,0.25732524]
[1733875371095,0.0144978,96650.0,96649.0,0.10732524]
[1733875372481,0.0144978,96650.0,96649.0,0.25732524]
[1733875372682,0.0144978,96650.0,96649.0,0.48352524]
[1733875372683,0.0001714,96650.0,96649.0,0.48352524]
[1733875374212,0.0001714,96650.0,96649.0,0.48252524]
[1733875374413,0.0001714,96650.0,96649.0,0.52902524]
[1733875374644,0.0001714,96650.0,96649.0,0.53102524]
[1733875374969,0.0001714,96650.0,96649.0,0.52902524]
[1733875375119,0.0011714,96650.0,96649.0,0.53602524]
[1733875375306,0.0011714,96650.0,96649.0,0.52902524]
[1733875375506,0.0001714,96650.0,96649.0,0.52802524]
[1733875375756,0.0021714,96650.0,96649.0,0.39202524]
[1733875376372,0.0118416,96650.0,96649.0,0.39202524]
[1733875376576,0.0021714,96650.0,96649.0,0.39202524]
[1733875376773,0.0021714,96650.0,96649.0,0.54202524]
[1733875377671,0.01184378,96650.0,96649.0,0.54202524]
[1733875377984,0.01084378,96650.0,96649.0,0.26432524]
[1733875378191,0.01452656,96650.0,96649.0,0.11032524]
[1733875378611,0.01552656,96650.0,96649.0,0.11932524]
[1733875379216,0.01552656,96650.0,96649.0,0.11432524]
[1733875379413,0.01452656,96650.0,96649.0,0.10532524]
[1733875379613,0.00485418,96650.0,96649.0,0.10532524]
[1733875379819,0.00585418,96650.0,96649.0,0.11132524]
[1733875380028,0.00585418,96650.0,96649.0,0.006]
[1733875380258,0.08795418,96650.0,96649.0,0.006]
[1733875380428,0.09564293,96650.0,96649.0,0.006]
[1733875381290,0.206986,96625.0,96624.0,0.15]
[1733875381464,0.206986,96625.0,96620.0,0.15]
[1733875381687,0.21162184,96625.0,96624.0,0.15]
[1733875381892,0.00463584,96625.0,96624.0,0.15]
[1733875382276,0.20698,96628.0,96627.0,0.15]
[1733875382475,0.20698,96628.0,96626.0,0.15]
[1733875382669,0.206975,96630.0,96627.0,0.15]
[1733875382910,0.206979,96628.0,96627.0,0.15]
[1733875383110,0.21664991,96628.0,96627.0,0.15]
[1733875383757,0.00967091,96628.0,96627.0,0.15]
[1733875384616,0.206974,96631.0,96628.0,0.15]
[1733875384821,0.413948,96631.0,96628.0,0.15]
[1733875384976,0.413948,96631.0,96627.0,0.003]
[1733875385154,0.413948,96631.0,96627.0,0.004]
[1733875385758,0.206955,96639.0,96615.0,0.15]
[1733875386022,0.0076678,96638.0,96617.0,0.15]
[1733875386145,0.0076678,96638.0,96616.0,0.10532524]
[1733875386146,0.206979,96628.0,96627.0,0.002]
[1733875386607,0.01428505,96628.0,96627.0,0.10732524]
[1733875386807,0.01428505,96628.0,96627.0,0.69430624]
[1733875386808,0.00462658,96628.0,96627.0,0.69430624]
[1733875387006,0.0001714,96650.0,96644.0,0.15]
[1733875387345,0.2071044,96650.0,96644.0,0.15]
[1733875388265,0.0001714,96650.0,96644.0,0.15]
[1733875388668,0.00965429,96649.0,96644.0,0.15]
[1733875388824,0.00965429,96649.0,96642.0,0.15]
[1733875388825,0.00965429,96648.0,96642.0,0.15]
[1733875389021,0.00965429,96648.0,96644.0,0.15]
[1733875389255,0.00965429,96647.0,96644.0,0.15]
[1733875389681,0.00965429,96646.0,96644.0,0.15]
[1733875389888,0.00965429,96646.0,96645.0,0.10532524]
[1733875390055,0.0031714,96650.0,96646.0,0.15]
[1733875390272,0.009655,96649.0,96648.0,0.15]
[1733875390478,0.009655,96649.0,96648.0,0.25532524]
[1733875392091,0.009655,96649.0,96648.0,0.25632524]
[1733875392306,0.009655,96649.0,96648.0,0.25932524]
[1733875392508,0.0001714,96650.0,96648.0,0.25932524]
[1733875392509,0.0001714,96650.0,96649.0,0.506934]
[1733875392713,0.0001714,96650.0,96649.0,0.61225924]
[1733875394198,0.0001714,96650.0,96649.0,0.40532524]
[1733875394531,0.0001714,96650.0,96649.0,0.10632524]
[1733875394736,0.0001714,96650.0,96649.0,0.25632524]
[1733875394920,0.0001714,96650.0,96649.0,0.10832524]
[1733875395120,0.0001714,96650.0,96649.0,0.10532524]
[1733875395524,0.0001714,96650.0,96649.0,0.10932524]
[1733875395718,0.0001714,96650.0,96649.0,0.25632524]
[1733875396072,0.0001714,96650.0,96649.0,0.25932524]
[1733875396949,0.0001714,96650.0,96649.0,0.004]
[1733875397160,0.00983248,96650.0,96649.0,0.003]
[1733875397345,0.00983248,96650.0,96649.0,0.004]
[1733875397915,0.00983248,96650.0,96649.0,0.001]
[1733875398116,0.00983248,96650.0,96649.0,0.002]
[1733875398522,0.206934,96649.0,96640.0,0.15]
[1733875398718,0.01183248,96650.0,96640.0,0.25532524]
[1733875398719,0.206948,96643.0,96640.0,0.25532524]
[1733875398926,0.0021714,96650.0,96630.0,0.206974]
[1733875398927,0.00966108,96642.0,96641.0,0.61227624]
[1733875399285,0.0041714,96650.0,96649.0,0.506934]
[1733875399400,0.0041714,96650.0,96649.0,0.65925924]
[1733875399597,0.0021714,96650.0,96649.0,0.65925924]
[1733875400071,0.0001714,96650.0,96649.0,0.65925924]
[1733875400445,0.0001714,96650.0,96649.0,0.73645924]
[1733875400648,0.0001714,96670.0,96667.0,0.3]
[1733875400649,0.00965752,96668.0,96667.0,0.3]
[1733875400848,0.0001714,96670.0,96667.0,0.3]
[1733875400849,0.0001714,96670.0,96667.0,0.40532524]
[1733875401051,0.0001714,96670.0,96668.0,0.10532524]
[1733875401303,0.0001714,96670.0,96669.0,0.15]
[1733875401419,0.0001714,96670.0,96669.0,0.25532524]
[1733875401616,0.00982676,96670.0,96669.0,0.25532524]
[1733875401863,0.0001714,96670.0,96669.0,0.25532524]
[1733875402070,0.0001714,96670.0,96669.0,0.61221624]
[1733875402269,0.0001714,96670.0,96669.0,0.40532524]
[1733875402484,0.0001714,96670.0,96669.0,0.48252524]
[1733875402864,0.0001714,96670.0,96669.0,0.52952524]
[1733875403154,0.0001714,96670.0,96669.0,0.53152524]
[1733875403385,0.0001714,96670.0,96669.0,0.68152524]
[1733875403585,0.0001714,96680.0,96679.0,0.50687]
[1733875403713,0.0001714,96680.0,96679.0,0.61219524]
[1733875404720,0.0001714,96680.0,96679.0,0.61519524]
[1733875405167,0.0011714,96680.0,96679.0,0.26732524]
[1733875405367,0.0011714,96680.0,96679.0,0.41432524]
[1733875405524,0.0021714,96680.0,96679.0,0.41932524]
[1733875405983,0.0011714,96680.0,96679.0,0.41032524]
[1733875406768,0.0001714,96680.0,96679.0,0.40532524]
[1733875407174,0.0001714,96680.0,96679.0,0.41132524]
[1733875407338,0.0001714,96680.0,96679.0,0.41432524]
[1733875407540,0.0001714,96680.0,96679.0,0.40832524]
[1733875407795,0.0001714,96680.0,96679.0,0.40532524]
[1733875408203,0.0001714,96680.0,96679.0,0.41232524]
[1733875408608,0.0001714,96680.0,96679.0,0.65952524]
[1733875408843,0.0011714,96680.0,96679.0,0.66652524]
[1733875409010,0.0011714,96680.0,96679.0,0.71232524]
[1733875409219,0.0001714,96680.0,96679.0,0.70532524]
[1733875409415,0.0001714,96680.0,96679.0,0.85532524]
[1733875410117,0.0001714,96690.0,96689.0,0.588048]
[1733875410348,0.0001714,96690.0,96689.0,0.69337324]
[1733875410523,0.0001714,96690.0,96689.0,0.99337324]